{"text_format":"1","workbook":"xlsx","n_sheets":4,"sheets":["instrukcja","rejestr  wydatków","Arkusz1","Arkusz2"],"not_rendered":{"charts":0,"images":0,"macros":1,"external_links":0,"defined_names":3,"comments":0,"pivot_tables":0},"unopened":[],"bounds":{"document_bytes":16777216,"sheet_cells":100000,"rows_first":2000,"rows_last":500,"rows_between":2000,"halvings":0,"cell_chars":16384,"cell_head_chars":4096},"cells_cut":0,"cells_raw":0,"read":"whole","date_system":"1900"}

{"sheet":"instrukcja","index":0,"n_rows":17,"n_cols":3,"rows_kept":17,"cut":false,"hidden":false,"merged":[[2,2,2,14],[5,2,5,6],[6,2,6,6],[4,2,4,13],[8,2,8,14]]}
[null,null,"Publikacje m.in. koszty publikacji, tłumaczeń specjalistycznych"]
[null,null,"Zakup aparatury naukowej o waryości poniżej 10 000 zł"]
[null,null,"Bezosobowy fundusz płac wraz z pochodnymi"]
[null,null,"Usługi obce- usługi zlecone podmiotem zewnetrznym lub CLB np. z zkresu badań laboratoryjnych"]
[null,null,"Materiały - materiały, materiały laboratoryjne, pasze, nawozy, paliwa, oleje, książki, czasopisma, księgozbiór, środki czystościowe, paliwa, oleje"]
[null,null,"Odczynniki - odczynniki, trucizny, alkohole"]
[null,null,"Delegacje - podróże krajowe i zagraniczne"]
[null,null,"Opłaty konferencyjne oraz szkolenia- wydatki ponoszone w zwiazku z udziałem w konferencji lub szkoleniu"]
[null,null,"Pozostałe - usługi naprawy, serwisowe, konserwacje, transportowe, gastronomiczne, hotelowe, usługi telekomunikacyjne, pozostałe usługi, usługi dzierżawy sprzętu oraz wszelkie nie wymienione powyżej"]
[]
[]
["postępowania"]
["praktyki"]
["materiały"]
["odczynniki"]
["podróże"]
["pozostałe"]

{"sheet":"rejestr  wydatków","index":1,"n_rows":48,"n_cols":18,"rows_kept":48,"cut":false,"hidden":false,"merged":[[20,16,24,16],[20,17,24,17],[25,16,28,16],[25,17,28,17],[1,16,5,16],[1,17,5,17],[6,16,14,16],[6,17,14,17],[15,17,19,17],[15,16,19,16]]}
[null,null,null,null,null,null,null,null,null,null,"Typ wydatku:","Suma:",null,null,"Wykaz dyscyplin naukowych:","Suma:","Wykaz dziedzin:","Suma:"]
[null,null,null,"Rejestr faktur/dokumentów finansowych płatnych ze środków subwencji na utrzymanie i rozwój potencjału badawczego",null,null,null,null,null,null,"Publikacje",{"$f":"SUMIF($H$11:$H$47,\"Publikacje\",$G$11:$G$47)","v":5000},null,null,"nauki leśne",{"$f":"SUMIF($I$11:$I$47,\"nauki leśne\",$G$11:$G$47)","v":0},"dziedzina nauk rolniczych",{"$f":"SUM(P2:P6)","v":18356.22}]
[null,null,null,null,null,null,null,null,null,null,"Zakup aparatury naukowej",{"$f":"SUMIF($H$11:$H$47,\"Zakup aparatury naukowej \",$G$11:$G$47)","v":45},null,null,"rolnictwo i ogrodnictwo",{"$f":"SUMIF($I$11:$I$47,\"rolnictwo i ogrodnictwo\",$G$11:$G$47)","v":12356.22}]
[null,null,null,null,null,null,null,null,null,null,"Bezosobowy fundusz płac wraz z pochodnymi",{"$f":"SUMIF($H$11:$H$47,\"Bezosobowy fundusz płac wraz z pochodnymi\",$G$11:$G$47)","v":0},null,null,"technologia żywności i żywienia",{"$f":"SUMIF($I$11:$I$47,\"technologia żywności i żywienia\",$G$11:$G$47)","v":1000}]
[null,null,null,null,null,null,null,null,null,null,"Usługi obce",{"$f":"SUMIF($H$11:$H$47,\"Usługi obce\",$G$11:$G$47)","v":45.22},null,null,"weterynaria",{"$f":"SUMIF($I$11:$I$47,\"weterynaria\",$G$11:$G$47)","v":5000}]
[null,null,null,null,null,null,null,null,null,null,"Materiały",{"$f":"SUMIF($H$11:$H$47,\"Materiały \",$G$11:$G$47)","v":0},null,null,"zootechnika i rybactwo",{"$f":"SUMIF($I$11:$I$47,\"zootechnika i rybactwo\",$G$11:$G$47)","v":0}]
[null,null,null,null,null,null,20000,null,null,null,"Odczynniki",{"$f":"SUMIF($H$11:$H$47,\"Odczynniki\",$G$11:$G$47)","v":12334},null,null,"architektura i urbanistyka",{"$f":"SUMIF($I$11:$I$47,\"architektura i urbanistyka\",$G$11:$G$47)","v":0},"dziedzina nauk \ninżynieryjno - technicznych ",{"$f":"SUM(P7:P15)","v":0}]
[null,null,null,null,null,"Pozostało",{"$f":"$G$7-$L$11","v":-98466.22},null,null,null,"Delegacje",{"$f":"SUMIF($H$11:$H$47,\"Delegacje\",$G$11:$G$47)","v":101000},null,null,"automatyka, elektronika i elektrotechnika",{"$f":"SUMIF($I$11:$I$47,\"automatyka, elektronika…\",$G$11:$G$47)","v":0}]
[null,null,null,null,null,null,null,null,null,null,"Opłaty konferencyjne i szkoleniowe",{"$f":"SUMIF($H$11:$H$47,\"Opłaty konferencyjne oraz szkolenia\",$G$11:$G$47)","v":0},null,null,"informatyka techniczna",{"$f":"SUMIF($I$11:$I$47,\"informatyka techniczna\",$G$11:$G$47)","v":0}]
[null,"Lp.","Nazwa firmy","Numer faktury","Data wystawienia","Kwota netto","Kwota brutto","Typ wydatku","Dypcyplina naukowa",null,"Pozostałe",{"$f":"SUMIF($H$11:$H$47,\"Pozostałe \",$G$11:$G$47)","v":42},null,null,"inżynieria biomedyczna",{"$f":"SUMIF($I$11:$I$47,\"inżynieria biomedyczna\",$G$11:$G$47)","v":0}]
[null,1,"przykład1",33,"2019-12-01",22.2,12334,"Odczynniki","rolnictwo i ogrodnictwo",null,"Razem:",{"$f":"SUM($G$11:$G$47)","v":118466.22},null,null,"inżynieria chemiczna",{"$f":"SUMIF($I$11:$I$47,\"inżynieria chemiczna\",$G$11:$G$47)","v":0}]
[null,2,"przykład2",12,"2019-05-14",3,22.22,"Usługi obce","rolnictwo i ogrodnictwo",null,null,null,null,null,"inżynieria lądowa i transport",{"$f":"SUMIF($I$11:$I$47,\"inżynieria lądowa i transport\",$G$11:$G$47)","v":0}]
[null,3,"przykład3",66,"2019-04-01",4,1000,"Delegacje","technologia żywności i żywienia",null,null,null,null,null,"inżynieria materiałowa",{"$f":"SUMIF($I$11:$I$47,\"inżynieria materiałowa\",$G$11:$G$47)","v":0}]
[null,4,"przykład4",443,"2019-04-20",45,5000,"Publikacje","weterynaria",null,null,null,null,null,"inżynieria mechaniczna",{"$f":"SUMIF($I$11:$I$47,\"inżynieria mechaniczna\",$G$11:$G$47)","v":0}]
[null,5,"przykład5",323,"2019-02-21",3,100000,"Delegacje","nauki o zdrowiu ",null,null,null,null,null,"inżynieria środowiska, górnictwo",{"$f":"SUMIF($I$11:$I$47,\"inżynieria środowiska, górnictwo\",$G$11:$G$47)","v":0}]
[null,6,"przykład6",434,"2019-03-03",54,45,"Zakup aparatury naukowej ","sztuki plastyczne i konserwacja dzieł sztuki",null,null,null,null,null,"nauki biologiczne",{"$f":"SUMIF($I$11:$I$47,\"nauki biologiczne\",$G$11:$G$47)","v":0},"dziedzina nauk \nścisłych i przyrodniczych",{"$f":"SUM(P16:P20)","v":0}]
[null,7,"przykład7",null,null,null,23,"Usługi obce","nauki socjologiczne",null,null,null,null,null,"nauki chemiczne",{"$f":"SUMIF($I$11:$I$47,\"nauki chemiczne\",$G$11:$G$47)","v":0}]
[null,8,"przykład8",null,null,2,20,"Pozostałe ","nauki prawne",null,null,null,null,null,"nauki o ziemi i środowisku",{"$f":"SUMIF($I$11:$I$47,\"nauki o ziemi i środowisku\",$G$11:$G$47)","v":0}]
[null,9,"przykład9",null,null,null,22,"Pozostałe ","nauki socjologiczne",null,null,null,null,null,"matematyka",{"$f":"SUMIF($I$11:$I$47,\"matematyka\",$G$11:$G$47)","v":0}]
[null,10,null,null,null,null,null,null,null,null,null,null,null,null,"informatyka",{"$f":"SUMIF($I$11:$I$47,\"informatyka\",$G$11:$G$47)","v":0}]
[null,11,null,null,null,null,null,null,null,null,null,null,null,null,"ekonomia i finanse",{"$f":"SUMIF($I$11:$I$47,\"ekonomia i finanse\",$G$11:$G$47)","v":0},"dziedzina nauk społecznych",{"$f":"SUM(P21:P25)","v":65}]
[null,12,null,null,null,null,null,null,null,null,null,null,null,null,"nauki o zarządzaniu i jakości",{"$f":"SUMIF($I$11:$I$47,\"nauki o zarządzaniu i jakości\",$G$11:$G$47)","v":0}]
[null,13,null,null,null,null,null,null,null,null,null,null,null,null,"nauki prawne",{"$f":"SUMIF($I$11:$I$47,\"nauki prawne\",$G$11:$G$47)","v":20}]
[null,14,null,null,null,null,null,null,null,null,null,null,null,null,"nauki socjologiczne",{"$f":"SUMIF($I$11:$I$47,\"nauki socjologiczne\",$G$11:$G$47)","v":45}]
[null,15,null,null,null,null,null,null,null,null,null,null,null,null,"geografia społeczno-ekonomiczna…",{"$f":"SUMIF($I$11:$I$47,\"geografia społeczno-ekonomiczna…\",$G$11:$G$47)","v":0}]
[null,16,null,null,null,null,null,null,null,null,null,null,null,null,"nauki farmaceutyczne",{"$f":"SUMIF($I$11:$I$47,\"nauki farmaceutyczne\",$G$11:$G$47)","v":0},"dziedzina nauk \nmedycznych i nauk o zdrowiu",{"$f":"SUM(P26:P29)","v":100000}]
[null,17,null,null,null,null,null,null,null,null,null,null,null,null,"nauki medyczne",{"$f":"SUMIF($I$11:$I$47,\"nauki medyczne\",$G$11:$G$47)","v":0}]
[null,18,null,null,null,null,null,null,null,null,null,null,null,null,"nauki o kulturze fizycznej",{"$f":"SUMIF($I$11:$I$47,\"nauki o kulturze fizycznej\",$G$11:$G$47)","v":0}]
[null,19,null,null,null,null,null,null,null,null,null,null,null,null,"nauki o zdrowiu ",{"$f":"SUMIF($I$11:$I$47,\"nauki o zdrowiu \",$G$11:$G$47)","v":100000}]
[null,20,null,null,null,null,null,null,null,null,null,null,null,null,"sztuki plastyczne i konserwacja dzieł sztuki",{"$f":"SUMIF($I$11:$I$47,\"sztuki plastyczne i konserwacja dzieł sztuki\",$G$11:$G$47)","v":45},"dziedzina sztuki",{"$f":"P30","v":45}]
[null,21,null,null,null,null,null,null,null,null,null,null,null,null,"nauki o sztuce",{"$f":"SUMIF($I$11:$I$47,\"nauki o sztuce\",$G$11:$G$47)","v":0},"dziedzina nauk humanistycznych",{"$f":"P31","v":0}]
[null,22,null,null,null,null,null,null,null,null,null,null,null,null,"Razem:",{"$f":"SUM($G$11:$G$47)","v":118466.22},"Razem:",{"$f":"SUM($R$1:$R$31)","v":118466.22}]
[null,23]
[null,24]
[null,25]
[null,26]
[null,27]
[]
[]
[]
[]
[]
[]
[]
[]
[]
[]
[null,null,null,"Razem :",null,{"$f":"SUM(F11:F47)","v":133.19999999999999},{"$f":"SUM(G11:G47)","v":118466.22}]

{"sheet":"Arkusz1","index":2,"n_rows":12,"n_cols":2,"rows_kept":12,"cut":false,"hidden":false,"merged":[]}
[]
[]
[null,"pozycje"]
[null,"Publikacje"]
[null,"Zakup aparatury naukowej "]
[null,"Bezosobowy fundusz płac wraz z pochodnymi"]
[null,"Usługi obce"]
[null,"Materiały "]
[null,"Odczynniki"]
[null,"Delegacje"]
[null,"Opłaty konferencyjne oraz szkolenia"]
[null,"Pozostałe "]

{"sheet":"Arkusz2","index":3,"n_rows":39,"n_cols":31,"rows_kept":39,"cut":false,"hidden":false,"merged":[]}
[null,"dyscypliny naukowe"]
[null,"nauki leśne"]
[null,"rolnictwo i ogrodnictwo"]
[null,"technologia żywności i żywienia"]
[null,"weterynaria"]
[null,"zootechnika i rybactwo"]
[null,"architektura i urbanistyka"]
[null,"automatyka, elektronika…"]
[null,"informatyka techniczna"]
[null,"inżynieria biomedyczna"]
[null,"inżynieria chemiczna"]
[null,"inżynieria lądowa i transport"]
[null,"inżynieria materiałowa"]
[null,"inżynieria mechaniczna"]
[null,"inżynieria środowiska, górnictwo"]
[null,"nauki biologiczne"]
[null,"nauki chemiczne"]
[null,"nauki o ziemi i środowisku"]
[null,"matematyka"]
[null,"informatyka"]
[null,"ekonomia i finanse"]
[null,"nauki o zarządzaniu i jakości"]
[null,"nauki prawne"]
[null,"nauki socjologiczne"]
[null,"geografia społeczno-ekonomiczna…"]
[null,"nauki farmaceutyczne"]
[null,"nauki medyczne"]
[null,"nauki o kulturze fizycznej"]
[null,"nauki o zdrowiu "]
[null,"sztuki plastyczne i konserwacja dzieł sztuki"]
[null,"nauki o sztuce"]
[]
[]
[]
[]
[]
[]
[]
[null,"nauki leśne","rolnictwo i ogrodnictwo","technologia żywności i żywienia","weterynaria","zootechnika i rybactwo","architektura i urbanistyka","automatyka, elektronika…","informatyka techniczna","inżynieria biomedyczna","inżynieria chemiczna","inżynieria lądowa i transport","inżynieria materiałowa","inżynieria mechaniczna","inżynieria środowiska.. górnictwo","nauki biologiczne","nauki chemiczne","nauki o ziemi i środowisku","matematyka","informatyka","ekonomia i finanse","nauki o zarządzaniu i jakosci ","nauki prawne","nauki socjologiczne","geografia społeczno- ekonomiczna…","nauki farmaceutyczne","nauki medyczne","nauki o kulturze fizycznej ","nauki o zdrowiu ","sztuki plastyczne i onserwacja dzieł sztuki","nauki o sztuce "]